Cogmind - Beta 11.1 @@@ ROGUE MODE // 2022.05.16 @ 20:02:46 Player: kway_side Result: Destroyed by G-34 Mercenary with Small Laser Performance ------------- Evolutions (0) 0 Regions Visited (4) 800 Robots Destroyed (29) 145 Value Destroyed (714) 714 Prototype IDs (0) 0 Alien Tech Used (0) 0 Bonus (350) 350 TOTAL SCORE: 2009 Bonus ------- Follower Combat Kills 50 Aligned with FarCom 300 Cogmind --------- Core Integrity 0/250 Matter 84/300 Energy 250/250 System Corruption 0% Temperature Cool (19) Movement Treading (480) Ox4 Location -9/Mines Parts ------- > --- POWER (1) -------- Ion Engine > --- PROPULSION (2) --- Light Treads > --- UTILITY (2) ------ Huge Storage Unit Propulsion Shielding > --- WEAPON (2) ------- Assault Rifle Autogun > --- INVENTORY (25) --- Improved Heat Sink Medium Storage Unit Sensor Array Seismic Detector Weapon Shielding Field Recycling Unit (0) EM Pulse Gun Particle Gun Particle Gun Particle Gun Particle Gun Beam Cannon Assault Rifle Autogun AWS/Autocannon Mining Laser Heavy Explosive Trap Heavy Explosive Trap Heavy Explosive Trap Heavy Explosive Trap Heavy Explosive Trap Peak State ------------ > --- POWER ------------ Light Nuclear Core > --- PROPULSION ------- Wheel > --- UTILITY ---------- Huge Storage Unit Targeting Computer > --- WEAPON ----------- Autogun Autogun > --- INVENTORY -------- Ion Engine Light Treads Light Treads Improved Heat Sink Medium Storage Unit Sensor Array Seismic Detector Propulsion Shielding Weapon Shielding Field Recycling Unit EM Pulse Gun Particle Gun Particle Gun Particle Gun Particle Gun Beam Cannon Assault Rifle Assault Rifle Autogun Autogun AWS/Autocannon Grenade Launcher Mining Laser [Rating: 16] Favorites ----------- Power Light Nuclear Core Engine Ion Engine Power Core Light Nuclear Core Propulsion Light Treads Treads Light Treads Leg Aluminum Leg Wheel Wheel Utility Targeting Computer Device Heat Sink Storage Huge Storage Unit Processor Targeting Computer Protection Propulsion Shielding Weapon Autogun Ballistic Gun Autogun Launcher Grenade Launcher Special Weapon Mining Laser Build | -11 -10 -10 -10 -9 ------- Run | Scr Mat Min Exi Min Slots Evolved . | . . . . . Power . | . . . . . Propulsion . | . . . . . Utility . | . . . . . Weapon . | . . . . . Parts Attached 30 | 1 16 3 . 10 Power 2 | . 1 . . 1 Engine 1 | . . . . 1 Core 1 | . 1 . . . Reactor . | . . . . . Propulsion 6 | . 3 1 . 2 Treads 4 | . 2 . . 2 Leg 1 | . 1 . . . Wheel 1 | . . 1 . . Hover . | . . . . . Flight . | . . . . . Utility 6 | . 5 . . 1 Device 2 | . 2 . . . Storage 2 | . 2 . . . Processor 1 | . 1 . . . Hackware . | . . . . . Protection 1 | . . . . 1 Artifact . | . . . . . Weapon 16 | 1 7 2 . 6 Energy Gun . | . . . . . Energy Cannon . | . . . . . Ballistic Gun 10 | 1 5 1 . 3 Ballistic Cannon . | . . . . . Launcher 5 | . 2 1 . 2 Special Weapon 1 | . . . . 1 Impact Weapon . | . . . . . Slashing Weapon . | . . . . . Piercing Weapon . | . . . . . Special Melee Weapon . | . . . . . Unidentified Prototypes . | . . . . . Parts Lost 8 | . 2 1 . 5 Power 2 | . 1 . . 1 Propulsion 4 | . 1 1 . 2 Utility . | . . . . . Weapon 2 | . . . . 2 Highest Loss Streak 3 | . 2 1 . 3 To Critical Strikes . | . . . . . Average Slot Usage (%) 95 | . 97 99 78 99 Engine 3 | . 1 . . 13 Core 10 | . 12 14 14 . Treads 20 | . 21 22 . 27 Leg 3 | . 5 . . . Wheel 2 | . . 4 14 . Storage 14 | . 14 14 14 14 Processor 13 | . 12 14 14 13 Ballistic Gun 24 | . 26 20 21 24 Launcher 1 | . . 7 . . Naked Turns . | . . . . . Heaviest Build 91 | 14 91 91 91 91 Greatest Support 40 | 20 40 40 10 40 Greatest Overweight (x) 9 | . 2 9 9 2 Average Overweight (x) 2 | . . 5 8 2 Largest Inventory Capacity 25 | 8 25 25 25 25 Average Capacity 21 | 8 18 25 25 25 Most Carried 25 | 6 23 22 25 25 Average Carried 19 | 6 15 22 23 23 Final Capacity 25 | 8 25 25 25 25 Final Carried 25 | 6 22 22 25 23 Class Distribution -------------------- 100% | Mutant Dominant Class ---------------- Mutant | -10/Materials Mutant | -10/Mines Mutant | -10/Exiles Mutant | -9/Mines Resources | -11 -10 -10 -10 -9 ----------- Run | Scr Mat Min Exi Min Matter Collected 730 | 200 396 28 . 106 Remotely . | . . . . . Salvage Created 775 | . 524 28 . 223 Parts 55 | . 32 5 . 18 Haulers Intercepted 2 | . 2 . . . Recyclers Shooed 4 | . 4 . . . Parts Field Recycled . | . . . . . Retrieved Matter . | . . . . . Parts Self-Destructed . | . . . . . Prevented . | . . . . . Kills | -11 -10 -10 -10 -9 ------- Run | Scr Mat Min Exi Min Combat Hostiles Destroyed 23 | . 13 3 . 7 Guns 12 | . 7 . . 5 AOE 11 | . 6 3 . 2 Classes Destroyed 6 | . 4 . . 2 Tunneler 2 | . . . . 2 Hauler 2 | . 2 . . . Operator 2 | . 2 . . . Swarmer 6 | . 3 3 . . Grunt 16 | . 10 . . 6 Duelist 1 | . . . . 1 Best Kill Streak 4 | . 4 3 . 4 Combat Bots Only 3 | . 3 3 . 3 Max Kills in Single Turn 3 | . 2 3 . 2 Gunslinging . | . . . . . Exploded 3 | . 2 3 . 1 Melee . | . . . . . Uniques/NPCs Destroyed . | . . . . . Combat | -11 -10 -10 -10 -9 -------- Run | Scr Mat Min Exi Min Damage Taken 1442 | . 560 243 . 639 Core 256 | . 101 58 . 97 Absorbed by Shields . | . . . . . Redirected to Shielding 9 | . . . . 9 Regen/Repaired (Parts) 77 | . 77 . . . Core Remaining (%) 100 | 100 . . . . Volleys Fired 72 | . 43 5 . 24 Largest 2 | . 2 1 . 2 Hottest 100 | . 46 30 . 100 Shots Fired 126 | . 81 5 . 40 Gun 111 | . 76 3 . 32 Cannon . | . . . . . Launcher 12 | . 5 2 . 5 Special 3 | . . . . 3 Kinetic 111 | . 76 3 . 32 Thermal 3 | . . . . 3 Explosive 12 | . 5 2 . 5 Electromagnetic . | . . . . . Robot Hit Streak 16 | . 10 3 . 16 Robot Miss Streak 3 | . 3 1 . 2 Penetration Max . | . . . . . Secondary Targets 3 | . 1 . . 2 Max Gunslinging Chain 1 | . 1 . . 1 Shots Hit Robots 94 | . 59 3 . 32 Core Hits 49 | . 31 2 . 16 Critical Kills 2 | . 2 . . . Critical Parts Destroyed . | . . . . . Critical Strikes 2 | . 2 . . . Destroy 2 | . 2 . . . Melee Attacks . | . . . . . Impact . | . . . . . Slashing . | . . . . . Piercing . | . . . . . Sneak Attacks . | . . . . . Combat Hostiles . | . . . . . Follow-up Attacks . | . . . . . Damage Inflicted 2212 | . 1213 161 . 838 Guns 1198 | . 777 29 . 392 Cannons . | . . . . . Explosions 1007 | . 433 132 . 442 Melee . | . . . . . Ramming 7 | . 3 . . 4 Kinetic 1198 | . 777 29 . 392 Thermal . | . . . . . Explosive 1007 | . 433 132 . 442 Electromagnetic . | . . . . . Impact . | . . . . . Slashing . | . . . . . Piercing . | . . . . . Highest Corruption . | . . . . . Average Corruption . | . . . . . Corruption Purged . | . . . . . Corruption Blocked . | . . . . . Overload Shots . | . . . . . Overflow Damage 35 | . 9 18 . 8 Projectiles . | . . . . . Explosions 35 | . 9 18 . 8 Melee . | . . . . . Knockbacks . | . . . . . Impact . | . . . . . Kinetic . | . . . . . Secondary . | . . . . . Self-Inflicted Damage 160 | . . 24 . 136 Shots 5 | . . 1 . 4 Rammed 1 | . . . . 1 Targets Rammed 2 | . 1 . . 1 Kicked 1 | . 1 . . . Crushed . | . . . . . Highest Temperature 40 | . 40 10 . 20 Average Temperature 9 | . 11 6 . 7 Received Heat Transfer 441 | . 267 . . 174 Siege Activations . | . . . . . Robots Corrupted . | . . . . . Combat Hostiles . | . . . . . Parts Fried . | . . . . . Impact Corruptions . | . . . . . Robots Melted . | . . . . . Combat Hostiles . | . . . . . Parts Melted . | . . . . . Heat Transferred . | . . . . . Parts Sabotaged . | . . . . . Parts Stolen . | . . . . . Parts Stripped . | . . . . . Power Chain Reactions . | . . . . . Missiles Intercepted . | . . . . . Alert | -11 -10 -10 -10 -9 ------- Run | Scr Mat Min Exi Min Peak Influence 262 | . 262 167 . 126 Initial 64 | . . 64 . . Average 79 | . 94 50 . 65 Maximum Alert Level 1 | . 1 . . . Low Security (%) 91 | 100 85 100 . 100 Level 1 8 | . 14 . . . Level 2 . | . . . . . Level 3 . | . . . . . Level 4 . | . . . . . Level 5 . | . . . . . High Security . | . . . . . Max Security . | . . . . . Squads Dispatched 5 | . 5 . . . Investigation 3 | . 3 . . . Extermination . | . . . . . Reinforcement 2 | . 2 . . . Assault . | . . . . . Garrison . | . . . . . Intercept . | . . . . . Searches Triggered . | . . . . . Construction Impeded . | . . . . . Haulers Reinforced . | . . . . . Active Scanning Responses . | . . . . . Cargo Convoy Interrupts . | . . . . . Stealth | -11 -10 -10 -10 -9 --------- Run | Scr Mat Min Exi Min Distress Signals 5 | . 2 2 . 1 Communications Jammed . | . . . . . Distress Signals . | . . . . . Times Spotted 45 | . 31 4 . 10 Peak Tracking Total 6 | . 6 3 . 3 Tactical Retreats 2 | . 1 1 . . Traps | -11 -10 -10 -10 -9 ------- Run | Scr Mat Min Exi Min Traps Triggered 2 | . 2 . . . Indirectly . | . . . . . Trap Hack Attempts . | . . . . . Triggered . | . . . . . Disarmed . | . . . . . Reprogrammed . | . . . . . Reused . | . . . . . Traps Extracted . | . . . . . Installed . | . . . . . Triggered . | . . . . . Most Traps Carried 5 | . . . . 5 Machines | -11 -10 -10 -10 -9 ---------- Run | Scr Mat Min Exi Min Machines Disabled . | . . . . . Max in Single Turn . | . . . . . Machines Sabotaged . | . . . . . Garrisons Compromised . | . . . . . Overloaded Fab Kills . | . . . . . Hacking | -11 -10 -10 -10 -9 --------- Run | Scr Mat Min Exi Min Machines Accessed 7 | . 7 . . . Terminals 6 | . 6 . . . Fabricators . | . . . . . Repair Stations 1 | . 1 . . . Recycling Units . | . . . . . Scanalyzers . | . . . . . Garrison Access . | . . . . . Total Hacks 23 | . 23 . . . Successful 10 | . 10 . . . Failed 13 | . 13 . . . Catastrophic 1 | . 1 . . . Database Lockouts . | . . . . . Manual 12 | . 11 . 1 . Terminals 19 | . 19 . . . Fabricators . | . . . . . Repair Stations 4 | . 4 . . . Recycling Units . | . . . . . Scanalyzers . | . . . . . Garrison Access . | . . . . . Terminal Hacks 6 | . 6 . . . Robot Analysis 1 | . 1 . . . Alert Level 1 | . 1 . . . Transport Status 1 | . 1 . . . Hauler Manifests 1 | . 1 . . . Registered Components 1 | . 1 . . . Registered Prototypes 1 | . 1 . . . Fabricator Hacks . | . . . . . Repair Station Hacks 3 | . 3 . . . Scan Component 2 | . 2 . . . Repair 1 | . 1 . . . Recycling Unit Hacks . | . . . . . Scanalyzer . | . . . . . Garrison Access Hacks . | . . . . . Unauthorized Hacks 1 | . 1 . . . Terminals 1 | . 1 . . . Operators 1 | . 1 . . . Fabricators . | . . . . . Repair Stations . | . . . . . Recycling Units . | . . . . . Scanalyzers . | . . . . . Garrison Access . | . . . . . Data Cores Recovered . | . . . . . Used . | . . . . . Hacking Detections 6 | . 6 . . . Full Trace Events 1 | . 1 . . . Feedback Events . | . . . . . Feedback Blocked . | . . . . . Robot Schematics Acquired . | . . . . . Robots Built . | . . . . . Authchips . | . . . . . Time . | . . . . . Total Robot Build Rating . | . . . . . Part Schematics Acquired . | . . . . . Parts Built . | . . . . . Authchips . | . . . . . Time . | . . . . . Total Part Build Rating . | . . . . . Parts Repaired 1 | . 1 . . . Time 26 | . 26 . . . Parts Recycled . | . . . . . Recycled Matter . | . . . . . Retrieved Matter . | . . . . . Retrieved Components . | . . . . . Parts Scanalyzed . | . . . . . Part Schematics Acquired . | . . . . . Parts Damaged . | . . . . . Bothacking | -11 -10 -10 -10 -9 ------------ Run | Scr Mat Min Exi Min Used RIF Installer . | . . . . . Robots Hacked . | . . . . . Non-combat . | . . . . . Combat . | . . . . . Robot Hacks Applied . | . . . . . Relay Couplers Released . | . . . . . Fabnet Peak Effective % . | . . . . . Robots Rewired . | . . . . . Allies Hacked . | . . . . . Hacks Repelled . | . . . . . Allies | -11 -10 -10 -10 -9 -------- Run | Scr Mat Min Exi Min Total Allies 2 | . . . . 2 Largest Group 2 | . . . . 2 Highest-Rated Group 43 | . . . . 43 Highest-Rated Ally 31 | . . . . 31 Total Orders . | . . . . . Ally Attacks 15 | . . . . 15 Total Damage 249 | . . . . 249 Kills 2 | . . . . 2 Allies Corrupted . | . . . . . Allies Melted . | . . . . . Intel | -11 -10 -10 -10 -9 ------- Run | Scr Mat Min Exi Min Robot Analysis Total 1 | . 1 . . . Derelict Logs Recovered 2 | . . 1 . 1 Drone Launches . | . . . . . Drone Recoveries . | . . . . . Exploration | -11 -10 -10 -10 -9 ------------- Run | Scr Mat Min Exi Min Turns Passed 4006 | 2 2111 737 484 672 Spaces Moved 1543 | 1 866 265 233 178 Core . | . . . . . Treads 909 | . 583 148 . 178 Legs 284 | 1 283 . . . Wheels 350 | . . 117 233 . Hover . | . . . . . Flight . | . . . . . Fastest Speed 120 | 120 120 215 200 320 Average Speed 237 | 120 217 273 207 320 Slowest Speed 320 | 120 320 320 215 320 Overloaded Moves . | . . . . . Propulsion Burnouts . | . . . . . Robots Hopped . | . . . . . Cave-ins Triggered . | . . . . . Exploration Rate (%) 49 | 2 96 39 60 48 Regions Visited 4 Branch Regions 3 Pre-discovered Areas . | . . . . . Known Exits Taken . | . . . . . Unknown Exits Taken 4 | 1 1 1 1 . Scrap Searched 1 | . . . . 1 Spaces Dug 12 | . 12 . . . Terrain Destroyed 82 | . 26 11 . 45 Melee . | . . . . . Projectile . | . . . . . AOE 82 | . 26 11 . 45 Terrain Rammed . | . . . . . Walls Destroyed . | . . . . . Machines Disabled . | . . . . . Actions | -11 -10 -10 -10 -9 --------- Run | Scr Mat Min Exi Min Total 1760 | 1 1018 272 234 235 Wait 72 | . 59 . . 13 Move 1539 | . 865 264 232 178 Hop . | . . . . . Pick Up 29 | . 22 . 1 6 Fast Attach 3 | . 3 . . . Attach 13 | . 7 . . 6 Detach 4 | . 4 . . . Swap 14 | 1 6 3 . 4 Drop 10 | . 8 . 1 1 Fire 72 | . 43 5 . 24 Melee . | . . . . . Ram . | . . . . . Kick 1 | . 1 . . . Crush 1 | . . . . 1 Escape Stasis . | . . . . . Rewire 2 | . . . . 2 Trap . | . . . . . Miscellaneous . | . . . . . Route ------- -11/Scrapyard -10/Materials (discovered 4 exits: [*Mat x3] / [*Min]) -10/Mines -10/Exiles -9/Mines History --------- Turn | Location | Event 3 | -11/Scrapyard | Discovered new exit (range 0) 3 | -11/Scrapyard | Entered Materials 254 | -10/Materials | Discovered new exit (range 13) 319 | -10/Materials | Build established: Mutant 420 | -10/Materials | Discovered new exit (range 6) 985 | -10/Materials | Discovered new exit (range 7) 1169 | -10/Materials | Repaired Assault Rifle 1724 | -10/Materials | Discovered new exit (range 14) 2114 | -10/Materials | Entered Mines 2153 | -10/Mines | Learned Materials emergency access door positions 2246 | -10/Mines | Deemed a non-threat by the Exiles lab entrance 2249 | -10/Mines | Discovered new exit (range 5) 2393 | -10/Mines | Core integrity fell below 50% 2575 | -10/Mines | Assembled infested the area 2580 | -10/Mines | Assisted by a Guerilla fighting off Assembled 2851 | -10/Mines | Entered Exiles 2901 | -10/Exiles | Met 8R-AWN 2942 | -10/Exiles | Met EX-HEX 3002 | -10/Exiles | Met EX-BIN 3028 | -10/Exiles | Aligned with FarCom system 3030 | -10/Exiles | Given EX-Vault access code 3099 | -10/Exiles | Opened EX-Vault 3109 | -10/Exiles | Found Prototype Ballistic Cannon 3157 | -10/Exiles | Warned to stay clear of 0b10 Research branches 3227 | -10/Exiles | Met EX-DEC 3309 | -10/Exiles | Discovered new exit (range 14) 3335 | -10/Exiles | Left Exiles lab with AWS/Autocannon 3335 | -10/Exiles | Entered Mines 3356 | -9/Mines | Core integrity fell below 20% 3384 | -9/Mines | Lost 3 parts (1p1n1w) 3415 | -9/Mines | Excavation squad dispatched 3415 | -9/Mines | A large section of the Mines collapsed 3478 | -9/Mines | Found a hidden stash of uninstalled traps 3665 | -9/Mines | Excavation squad dispatched 3718 | -9/Mines | Learned Materials terminal intel 3879 | -9/Mines | Received a Rocket Launcher from a helpful Derelict 3915 | -9/Mines | Excavation squad dispatched 4007 | -9/Mines | Destroyed by G-34 Mercenary with Small Laser Last Messages --------------- 03877_ GA-JYR(g): "Need to get rid of a swarm? Done. Need a big hole in the wall? Done." 03878_ GA-JYR(g): "Need a small hole in the wall? Leave that to the mining laser wimps, I say!" 03879_ GA-JYR(g): "Would you like a rocket launcher? I know I would if I were you, so I'm going to lend you mine." 03879_ GA-JYR(g) slips back into the shadows. 03888_ Dropped Autogun. 03889_ Acquired Rocket Launcher. 03915_ ALERT: Derelict activity in mines confirmed. Dispatching additional escorted excavation squad. 03984_ G-34 Mercenary destroyed. 03984_ Destroyed Seismic Detector. 03984_ T-07 Excavator destroyed. 03990_ Rocket Launcher destroyed. 03995_ The unstable cave ceiling collapses. 03996_ Discarded Targeting Computer. 04003_ Lgt. Treads destroyed. 04006_ G-34 Mercenary destroyed. 04006_ Switching to secondary target: G-34 Mercenary. Map ----- +----------------------------------------------------+ | ?????????????????????????????????????? | | ?????????????????????????????????????? | | ?????????????????????????????????????? | | ?????????????????????????????????????? | | ?????????????????????????????????????? | | ?????????????????????????????????????? | | ?????????????????????????????????????? | | ?????????????????????????????????????? | | ?????????????????????????????????????? | | ?????????????????????????????????????? | | ?????????????????????????????????????? | | ???????????????????? ????????????????? | | ???????????????????# ????????????????? | | ??????????????????# ???????s????????? | | ??????????????????# ??????s?????????? | | ?????????????????## #??????ss???????? | | ????????#????##### #?????????##????? | | ???????? #### #???????? ""????? | | ???????? ###??#### "?""??? | | ???????? g ??? ?""" ?? | | ????????? ???? ? ???? | | ??????????? t ???## # ?????? | | ?????????????# ### ##?????? | | ??????????????# g # !# ###???? | | ??????????????# [ =%=* #???? | | #?????????????# =%[ @ !%= ##??? | | ###???????????# !=t% = ##?? | | ##??????????## #?? | | #???????????## ## #?? | | #????????????# ######### #?? | | #?????????????## #???????# #?? | | #??????????????## #???????# #?? | | ##?????????# ### ##???????## #?? | | ##????????# #?????????## ##?? | | # ##???????# ### ##?????????####??? | | ### #???????????## ##??????????????? | | # ##????????????## ###????????????? | | ##??????????????## ##???????????? | | ##?????????? ?????## #???????????? | | ##??????????? ??????## ##??????????? | | #???????????# ???????# #??????????? | | #???????????# ???????# #??????????? | | #???????????# #??????## #??????????? | | #######?????# #???????## ##??????????? | | #???#%#????????# #???????????? | | #######?????#%###??????# #???????????? | | #???????????#=%*##?????# #???????????? | | #???????????#!= ##????# #???????????? | | #??????????## ###### #???????????? | | #?????????## ## #???????????? | +----------------------------------------------------+ Best States ------------- Heat Dissipation 39 Energy Generation 14 Energy Capacity 250 Matter Stores 300 Matter Capacity 300 Sight Range 16 Terrain Scan Density 10 Propulsion Shielding 33 Evasion (%) 55 Targeting Accuracy 5 Recoil Reduction 2 Item Schematics ----------------- None Robot Schematics ------------------ None Fabricated ------------ Nothing Alien Tech Used ----------------- None Achievements -------------- None Challenges ------------ None Game ------ Seed AssemblyLayeredWheel Manual? 0 Play Time 00:25:14 Cumulative 104.5 hours Start 2022.05.16 @ 04:26:48 End 2022.05.16 @ 20:02:46 Sessions 3 Manual Loads 0 Difficulty Rogue Special Mode None Game No. 105 Rogue 105 Adventurer 0 Explorer 0 Win Type - Total 0 Types 0/0/0/0/0/0/0/0/0 Lore% 27 Gallery% 38 Achievement% 31 Wizard Run 0 Options --------- ASCII 0 Keyboard 0 Movement Numpad Keybinds 0 Fullscreen 2 Font 18/Smallcaps Map View 76x50 Tactical HUD 1 Map Filters NONE Filters NONE Steam 1 RUN: 8b014729-c70e-4b17-b5e8-7ba8ed171ff1